fUST/lending_fUST_20250522
["ID","MTS","AMOUNT","RATE_DAILY","PERIOD"]
[361978163,1747918242222,-749.8,0.00022739,2]
[361978164,1747918242231,-475.78,0.00022739,2]
[361978165,1747918242240,-430.0,0.00022739,2]
[361978166,1747918242249,-851.55,0.00022739,2]
[361978167,1747918242259,-430.0,0.00022739,2]
[361978168,1747918242268,-430.0,0.00022739,2]
[361978169,1747918242278,-646.89,0.00022739,2]
[361978170,1747918242287,-430.0,0.00022739,2]
[361978171,1747918242297,-430.0,0.00022739,2]
[361978172,1747918242306,-430.0,0.00022739,2]
[361978173,1747918242316,-430.0,0.00022739,2]
[361978174,1747918242325,-774.29,0.00022739,2]
[361978175,1747918242335,-707.07,0.00022739,2]
[361978176,1747918242344,-430.0,0.00022739,2]
[361978178,1747918242354,-430.0,0.00022739,2]
[361978179,1747918242363,-430.0,0.00022739,2]
[361978180,1747918242372,-915.73,0.00022739,2]
[361978181,1747918242381,-736.36,0.00022739,2]
[361978182,1747918242391,-1047.1,0.00022739,2]
[361978183,1747918242400,-1085.49,0.00022739,2]
[361978184,1747918242410,-430.0,0.00022739,2]
[361978185,1747918242419,-524.54,0.00022739,2]
[361978186,1747918242429,-430.0,0.00022739,2]
[361978187,1747918242438,-4510.3,0.00022739,2]
[361978189,1747918242447,-430.0,0.00022739,2]
[361978190,1747918242457,-444.27,0.00022739,2]
[361978191,1747918242467,-430.0,0.00022739,2]
[361978192,1747918242476,-430.0,0.00022739,2]
[361978193,1747918242489,-430.0,0.00022739,2]
[361978194,1747918242498,-430.0,0.00022739,2]
[361978195,1747918242508,-1387.7,0.00022739,2]
[361978196,1747918242518,-430.0,0.00022739,2]
[361978198,1747918242530,-430.0,0.00022739,2]
[361978200,1747918242540,-430.0,0.00022739,2]
[361978201,1747918242549,-647.8,0.00022739,2]
[361978202,1747918242559,-673.08,0.00022739,2]
[361978203,1747918242569,-495.16,0.00022739,2]
[361978204,1747918242578,-466.95,0.00022739,2]
[361978205,1747918242588,-663.11,0.00022739,2]
[361978206,1747918242597,-430.0,0.00022739,2]
[361978207,1747918242607,-1512.93,0.00022739,2]
[361978209,1747918242616,-430.0,0.00022739,2]
[361978210,1747918242627,-430.0,0.00022739,2]
[361978211,1747918242636,-1589.43,0.00022739,2]
[361978212,1747918242647,-430.0,0.00022739,2]
[361978213,1747918242656,-1351.09,0.00022739,2]
[361978214,1747918242666,-576.0,0.00022739,2]
[361978215,1747918242676,-430.0,0.00022739,2]
[361978216,1747918242690,-612.07,0.00022739,2]
[361978217,1747918242699,-2985.15,0.00022739,2]
[361978218,1747918242708,-430.0,0.00022739,2]
[361978219,1747918242718,-529.38,0.00022739,2]
[361978220,1747918242727,-635.82,0.00022739,2]
[361978221,1747918242737,-1388.75,0.00022739,2]
[361978222,1747918242747,-782.94,0.00022739,2]
[361978223,1747918242756,-914.59,0.00022739,2]
[361978224,1747918242766,-1024.39,0.00022739,2]
[361978225,1747918242775,-430.0,0.00022739,2]
[361978226,1747918242785,-430.0,0.00022739,2]
[361978227,1747918242794,-4221.05,0.00022739,2]
[361978228,1747918242803,-518.16,0.00022739,2]
[361978229,1747918242815,-508.14,0.00022739,2]
[361978230,1747918242825,-617.61,0.00022739,2]
[361978231,1747918242835,-1360.12,0.00022739,2]
[361978232,1747918242844,-657.51,0.00022739,2]
[361978233,1747918242854,-1975.52,0.00022739,2]
[361978234,1747918242863,-681.99,0.00022739,2]
[361978236,1747918242873,-857.01,0.00022739,2]
[361978237,1747918242882,-1447.26,0.00022739,2]
[361978238,1747918242892,-430.0,0.00022739,2]
[361978239,1747918242902,-561.81,0.00022739,2]
[361978240,1747918242911,-431.64,0.00022739,2]
[361978241,1747918242920,-430.0,0.00022739,2]
[361978242,1747918242930,-844.57,0.00022739,2]
[361978243,1747918242940,-430.0,0.00022739,2]
[361978244,1747918242951,-1225.07,0.00022739,2]
[361978245,1747918242962,-430.0,0.00022739,2]
[361978246,1747918242972,-430.0,0.00022739,2]
[361978247,1747918242983,-500.54,0.00022739,2]
[361978248,1747918242992,-430.0,0.00022739,2]
[361978249,1747918243001,-1229.56978712,0.00022831,8]
[361978250,1747918243011,-1906.40184213,0.00022913,3]
[361978251,1747918243020,-1229.56978712,0.00022934,8]
[361978252,1747918243029,-1000.0,0.00022968,2]
[361978253,1747918243039,-662.37085689,0.00023,30]
[361978254,1747918243048,-500.0,0.00023,30]
[361978255,1747918243058,-160.0,0.00023,3]
[361978256,1747918243067,-160.0,0.00023,3]
[361978257,1747918243076,-422.78357425,0.00023,3]
[361978258,1747918243087,-160.0,0.00023,3]
[361978259,1747918243096,-160.0,0.00023,3]
[361978260,1747918243106,-430.0,0.00023013,2]
[361978261,1747918243115,-430.0,0.00023013,2]
[361978262,1747918243124,-430.0,0.00023013,2]
[361978263,1747918243134,-749.8,0.00023013,2]
[361978264,1747918243146,-475.78,0.00023013,2]
[361978265,1747918243156,-430.0,0.00023013,2]
[361978266,1747918243166,-851.55,0.00023013,2]
[361978267,1747918243175,-430.0,0.00023013,2]
[361978268,1747918243185,-430.0,0.00023013,2]
[361978269,1747918243195,-646.89,0.00023013,2]
[361978270,1747918243205,-430.0,0.00023013,2]
[361978271,1747918243214,-430.0,0.00023013,2]
[361978272,1747918243224,-412.60081372,0.00023013,2]
[361978273,1747918243233,-430.0,0.00023013,2]
[361978274,1747918243243,-774.29,0.00023013,2]
[361978275,1747918243252,-707.07,0.00023013,2]
[361978276,1747918243262,-430.0,0.00023013,2]
[361978277,1747918243272,-430.0,0.00023013,2]
[361978278,1747918243281,-915.73,0.00023013,2]
[361978279,1747918243291,-736.36,0.00023013,2]
[361978280,1747918243302,-1047.1,0.00023013,2]
[361978281,1747918243312,-1085.49,0.00023013,2]
[361978282,1747918243324,-430.0,0.00023013,2]
[361978283,1747918243334,-524.54,0.00023013,2]
[361978284,1747918243343,-430.0,0.00023013,2]
[361978285,1747918243352,-4510.3,0.00023013,2]
[361978286,1747918243361,-430.0,0.00023013,2]
[361978287,1747918243371,-444.27,0.00023013,2]
[361978288,1747918243381,-430.0,0.00023013,2]
[361978289,1747918243390,-430.0,0.00023013,2]
[361978290,1747918243399,-430.0,0.00023013,2]
[361978291,1747918243409,-1387.7,0.00023013,2]
[361978292,1747918243418,-430.0,0.00023013,2]
[361978293,1747918243428,-430.0,0.00023013,2]
[361978294,1747918243438,-430.0,0.00023013,2]
[361978295,1747918243447,-647.8,0.00023013,2]
[361978296,1747918243456,-673.08,0.00023013,2]
[361978297,1747918243465,-495.16,0.00023013,2]
[361978298,1747918243474,-466.95,0.00023013,2]
[361978299,1747918243486,-663.11,0.00023013,2]
[361978300,1747918243495,-1512.93,0.00023013,2]
[361978301,1747918243504,-430.0,0.00023013,2]
[361978302,1747918243514,-430.0,0.00023013,2]
[361978303,1747918243523,-1589.43,0.00023013,2]
[361978304,1747918243535,-430.0,0.00023013,2]
[361978305,1747918243545,-1351.09,0.00023013,2]
[361978306,1747918243556,-576.0,0.00023013,2]
[361978307,1747918243569,-430.0,0.00023013,2]
[361978308,1747918243579,-612.07,0.00023013,2]
[361978309,1747918243589,-2985.15,0.00023013,2]
[361978310,1747918243602,-430.0,0.00023013,2]
[361978311,1747918243613,-529.38,0.00023013,2]
[361978312,1747918243623,-635.82,0.00023013,2]
[361978313,1747918243632,-1388.75,0.00023013,2]
[361978314,1747918243642,-782.94,0.00023013,2]
[361978315,1747918243652,-914.59,0.00023013,2]
[361978317,1747918243661,-1024.39,0.00023013,2]
[361978318,1747918243671,-430.0,0.00023013,2]
[361978320,1747918243681,-430.0,0.00023013,2]
[361978321,1747918243691,-4221.05,0.00023013,2]
[361978322,1747918243702,-518.16,0.00023013,2]
[361978324,1747918243712,-508.14,0.00023013,2]
[361978325,1747918243722,-617.61,0.00023013,2]
[361978327,1747918243731,-1360.12,0.00023013,2]
[361978328,1747918243741,-657.51,0.00023013,2]
[361978329,1747918243752,-1975.52,0.00023013,2]
[361978330,1747918243762,-681.99,0.00023013,2]
[361978331,1747918243772,-857.01,0.00023013,2]
[361978332,1747918243783,-1447.26,0.00023013,2]
[361978333,1747918243793,-430.0,0.00023013,2]
[361978334,1747918243803,-561.81,0.00023013,2]
[361978335,1747918243813,-431.64,0.00023013,2]
[361978336,1747918243824,-430.0,0.00023013,2]
[361978337,1747918243833,-844.57,0.00023013,2]
[361978338,1747918243843,-169.95585737,0.00023013,2]
[361978339,1747918243853,-1225.07,0.00023013,2]
[361978340,1747918243862,-430.0,0.00023013,2]
[361978341,1747918243872,-331.46421048,0.00023013,2]
[361978342,1747918243882,-500.54,0.00023013,2]
[361978343,1747918243891,-538.28737705,0.00023013,2]
[361978344,1747918243901,-1000.0,0.00023035,2]
[361978345,1747918243910,-1229.56978712,0.00023038,8]
[361978346,1747918243921,-1229.56978712,0.00023141,8]
[361978347,1747918243931,-1229.56978712,0.00023245,8]
[361978348,1747918243940,-430.0,0.00023287,2]
[361978349,1747918243951,-430.0,0.00023287,2]
[361978350,1747918243961,-749.8,0.00023287,2]
[361978351,1747918243970,-475.78,0.00023287,2]
[361978352,1747918243981,-430.0,0.00023287,2]
[361978354,1747918244107,-851.55,0.00023287,2]
[361978355,1747918244119,-430.0,0.00023287,2]
[361978356,1747918244129,-430.0,0.00023287,2]
[361978357,1747918244138,-646.89,0.00023287,2]
[361978358,1747918244149,-430.0,0.00023287,2]
[361978359,1747918244158,-430.0,0.00023287,2]
[361978360,1747918244167,-430.0,0.00023287,2]
[361978361,1747918244177,-774.29,0.00023287,2]
[361978362,1747918244186,-707.07,0.00023287,2]
[361978363,1747918244195,-430.0,0.00023287,2]
[361978364,1747918244204,-430.0,0.00023287,2]
[361978365,1747918244213,-915.73,0.00023287,2]
[361978366,1747918244222,-736.36,0.00023287,2]
[361978367,1747918244232,-1047.1,0.00023287,2]
[361978368,1747918244241,-3371.11,0.00023287,2]
[361978369,1747918244250,-1085.49,0.00023287,2]
[361978370,1747918244260,-430.0,0.00023287,2]
[361978371,1747918244269,-524.54,0.00023287,2]
[361978372,1747918244279,-439.36377283,0.00023287,2]
[361978373,1747918244288,-4510.3,0.00023287,2]
[361978374,1747918244298,-430.0,0.00023287,2]
[361978375,1747918244307,-444.27,0.00023287,2]
[361978376,1747918244316,-430.0,0.00023287,2]
[361978377,1747918244326,-430.0,0.00023287,2]
[361978378,1747918244334,-430.0,0.00023287,2]
[361978379,1747918244343,-1387.7,0.00023287,2]
[361978380,1747918244353,-430.0,0.00023287,2]
[361978381,1747918244362,-430.0,0.00023287,2]
[361978382,1747918244371,-430.0,0.00023287,2]
[361978383,1747918244381,-647.8,0.00023287,2]
[361978384,1747918244390,-673.08,0.00023287,2]
[361978385,1747918244400,-495.16,0.00023287,2]
[361978386,1747918244409,-466.95,0.00023287,2]
[361978387,1747918244418,-663.11,0.00023287,2]
[361978388,1747918244428,-1512.93,0.00023287,2]
[361978389,1747918244437,-313.5757699,0.00023287,2]
[361978390,1747918244591,-116.4242301,0.00023287,2]
[361978391,1747918244601,-253.07559818,0.00023287,2]
[361978392,1747918244610,-1589.43,0.00023287,2]
[361978393,1747918244620,-1351.09,0.00023287,2]
[361978394,1747918244630,-430.0,0.00023287,2]
[361978395,1747918244640,-576.0,0.00023287,2]
[361978396,1747918244651,-430.0,0.00023287,2]
[361978397,1747918244661,-612.07,0.00023287,2]
[361978398,1747918244672,-2985.15,0.00023287,2]
[361978399,1747918244681,-430.0,0.00023287,2]
[361978400,1747918244691,-529.38,0.00023287,2]
[361978401,1747918244700,-635.82,0.00023287,2]
[361978402,1747918244710,-1388.75,0.00023287,2]
[361978403,1747918244720,-782.94,0.00023287,2]
[361978404,1747918244730,-914.59,0.00023287,2]
[361978405,1747918244740,-1024.39,0.00023287,2]
[361978406,1747918244750,-430.0,0.00023287,2]
[361978407,1747918244759,-4221.05,0.00023287,2]
[361978408,1747918244770,-430.0,0.00023287,2]
[361978409,1747918244780,-518.16,0.00023287,2]
[361978410,1747918244790,-508.14,0.00023287,2]
[361978411,1747918244800,-617.61,0.00023287,2]
[361978412,1747918244809,-1360.12,0.00023287,2]
[361978413,1747918244819,-657.51,0.00023287,2]
[361978414,1747918244829,-1975.52,0.00023287,2]
[361978415,1747918244838,-681.99,0.00023287,2]
[361978416,1747918244848,-857.01,0.00023287,2]
[361978417,1747918244858,-1447.26,0.00023287,2]
[361978418,1747918244868,-430.0,0.00023287,2]
[361978419,1747918244877,-561.81,0.00023287,2]
[361978420,1747918244887,-430.0,0.00023287,2]
[361978421,1747918244896,-431.64,0.00023287,2]
[361978422,1747918244906,-844.57,0.00023287,2]
[361978423,1747918244916,-1225.07,0.00023287,2]
[361978424,1747918244925,-430.0,0.00023287,2]
[361978425,1747918244934,-500.54,0.00023287,2]
[361978426,1747918244945,-1229.56978712,0.00023348,9]
[361978427,1747918244954,-160.0,0.00023381,3]
[361978428,1747918244964,-312.4054299,0.00023429,2]
[361978429,1747918244973,-1229.56978712,0.00023452,9]
[361978430,1747918244983,-500.0,0.000235,2]
[361978431,1747918244993,-1500.0,0.00023516,2]
[361978432,1747918245003,-1091.415597,0.0002352,2]
[361978433,1747918245013,-1229.56978712,0.00023555,9]
[361978434,1747918245022,-430.0,0.00023561,2]
[361978435,1747918245032,-430.0,0.00023561,2]
[361978436,1747918245041,-749.8,0.00023561,2]
[361978437,1747918245052,-475.78,0.00023561,2]
[361978438,1747918245063,-430.0,0.00023561,2]
[361978439,1747918245072,-851.55,0.00023561,2]
[361978440,1747918245085,-430.0,0.00023561,2]
[361978441,1747918245096,-430.0,0.00023561,2]
[361978442,1747918245107,-505.22978346,0.00023561,2]
[361978444,1747918245200,-141.66021654,0.00023561,2]
[361978445,1747918245210,-430.0,0.00023561,2]
[361978446,1747918245220,-430.0,0.00023561,2]
[361978447,1747918245229,-430.0,0.00023561,2]
[361978448,1747918245239,-774.29,0.00023561,2]
[361978449,1747918245249,-707.07,0.00023561,2]
[361978450,1747918245258,-184.29051152,0.00023561,2]
[361978451,1747918245267,-430.0,0.00023561,2]
[361978452,1747918245277,-915.73,0.00023561,2]
[361978453,1747918245287,-23.23098844,0.00023561,2]
[361978454,1747918245299,-713.12901156,0.00023561,2]
[361978455,1747918245309,-1047.1,0.00023561,2]
[361978456,1747918245319,-180.88283409,0.00023561,2]
[361978457,1747918245331,-904.60716591,0.00023561,2]
[361978458,1747918245341,-430.0,0.00023561,2]
[361978459,1747918245351,-524.54,0.00023561,2]
[361978460,1747918245360,-430.0,0.00023561,2]
[361978461,1747918245370,-444.27,0.00023561,2]
[361978463,1747918245379,-430.0,0.00023561,2]
[361978464,1747918245388,-430.0,0.00023561,2]
[361978465,1747918245398,-430.0,0.00023561,2]
[361978466,1747918245407,-1387.7,0.00023561,2]
[361978467,1747918245417,-430.0,0.00023561,2]
[361978468,1747918245426,-430.0,0.00023561,2]
[361978469,1747918245436,-430.0,0.00023561,2]
[361978470,1747918245445,-647.8,0.00023561,2]
[361978472,1747918245455,-41.83698835,0.00023561,2]
[361978485,1747918245576,-265.12264772,0.00023561,2]
[361978487,1747918245588,-366.12036393,0.00023561,2]
[361978489,1747918245597,-495.16,0.00023561,2]
[361978491,1747918245607,-466.95,0.00023561,2]
[361978493,1747918245616,-663.11,0.00023561,2]
[361978495,1747918245626,-1512.93,0.00023561,2]
[361978497,1747918245635,-154.75029064,0.00023561,2]
[361978499,1747918245644,-1589.43,0.00023561,2]
[361978501,1747918245654,-1351.09,0.00023561,2]
[361978503,1747918245663,-430.0,0.00023561,2]
[361978505,1747918245673,-576.0,0.00023561,2]
[361978507,1747918245682,-430.0,0.00023561,2]
[361978509,1747918245691,-612.07,0.00023561,2]
[361978511,1747918245701,-2985.15,0.00023561,2]
[361978513,1747918245710,-430.0,0.00023561,2]
[361978515,1747918245719,-529.38,0.00023561,2]
[361978517,1747918245729,-635.82,0.00023561,2]
[361978520,1747918245739,-1388.75,0.00023561,2]
[361978522,1747918245749,-782.94,0.00023561,2]
[361978523,1747918245758,-914.59,0.00023561,2]
[361978525,1747918245768,-1024.39,0.00023561,2]
[361978527,1747918245777,-430.0,0.00023561,2]
[361978530,1747918245787,-4221.05,0.00023561,2]
[361978532,1747918245797,-430.0,0.00023561,2]
[361978534,1747918245807,-518.16,0.00023561,2]
[361978535,1747918245816,-508.14,0.00023561,2]
[361978537,1747918245825,-617.61,0.00023561,2]
[361978539,1747918245835,-1360.12,0.00023561,2]
[361978541,1747918245844,-657.51,0.00023561,2]
[361978544,1747918245854,-1975.52,0.00023561,2]
[361978546,1747918245868,-681.99,0.00023561,2]
[361978548,1747918245878,-857.01,0.00023561,2]
[361978550,1747918245887,-1447.26,0.00023561,2]
[361978552,1747918245898,-430.0,0.00023561,2]
[361978554,1747918245908,-561.81,0.00023561,2]
[361978556,1747918245918,-431.64,0.00023561,2]
[361978558,1747918245928,-430.0,0.00023561,2]
[361978572,1747918246049,-844.57,0.00023561,2]
[361978573,1747918246060,-1225.07,0.00023561,2]
[361978574,1747918246070,-430.0,0.00023561,2]
[361978575,1747918246081,-500.54,0.00023561,2]
[361978576,1747918246090,-1500.0,0.00023583,2]
[361978577,1747918246100,-1229.56978712,0.00023659,9]
[361978578,1747918246110,-700.0,0.00023735,2]
[361978579,1747918246120,-300.919287,0.00023735,7]
[361978580,1747918246131,-300.919287,0.00023735,7]
[361978581,1747918246141,-1229.56978712,0.00023762,9]
[361978582,1747918246152,-1687.6646901,0.0002377,2]
[361978583,1747918246162,-430.0,0.00023835,2]
[361978584,1747918246172,-430.0,0.00023835,2]
[361978585,1747918246182,-749.8,0.00023835,2]
[361978586,1747918246191,-475.78,0.00023835,2]
[361978587,1747918246200,-430.0,0.00023835,2]
[361978588,1747918246210,-851.55,0.00023835,2]
[361978589,1747918246220,-430.0,0.00023835,2]
[361978590,1747918246230,-430.0,0.00023835,2]
[361978591,1747918246240,-646.89,0.00023835,2]
[361978592,1747918246250,-430.0,0.00023835,2]
[361978593,1747918246263,-430.0,0.00023835,2]
[361978594,1747918246275,-430.0,0.00023835,2]
[361978595,1747918246285,-774.29,0.00023835,2]
[361978596,1747918246295,-707.07,0.00023835,2]
[361978597,1747918246304,-430.0,0.00023835,2]
[361978598,1747918246314,-915.73,0.00023835,2]
[361978599,1747918246324,-736.36,0.00023835,2]
[361978600,1747918246334,-1047.1,0.00023835,2]
[361978602,1747918246344,-1085.49,0.00023835,2]
[361978603,1747918246354,-430.0,0.00023835,2]
[361978604,1747918246365,-524.54,0.00023835,2]
[361978605,1747918246375,-430.0,0.00023835,2]
[361978606,1747918246385,-444.27,0.00023835,2]
[361978607,1747918246395,-430.0,0.00023835,2]
[361978608,1747918246405,-430.0,0.00023835,2]
[361978609,1747918246415,-430.0,0.00023835,2]
[361978610,1747918246425,-1387.7,0.00023835,2]
[361978611,1747918246435,-430.0,0.00023835,2]
[361978613,1747918246444,-430.0,0.00023835,2]
[361978615,1747918246455,-430.0,0.00023835,2]
[361978616,1747918246464,-647.8,0.00023835,2]
[361978617,1747918246475,-673.08,0.00023835,2]
[361978618,1747918246485,-495.16,0.00023835,2]
[361978619,1747918246497,-466.95,0.00023835,2]
[361978620,1747918246507,-663.11,0.00023835,2]
[361978621,1747918246516,-1353.45589788,0.00023835,2]
[361978622,1747918246572,-159.47410212,0.00023835,2]
[361978623,1747918246582,-141.98217455,0.00023835,2]
[361978624,1747918246595,-981.075366,0.00023835,2]
[361978625,1747918246607,-466.37245945,0.00023835,2]
[361978626,1747918246617,-533.80714894,0.00023835,2]
[361978658,1747918451781,163.881502,0.00013699,2]
[361978659,1747918803172,22303.59999665,0.00013,2]
[361978660,1747919103120,657.29465383,0.00013,2]
[361978772,1747919432093,-5000.0,0.00018345,2]
[361978774,1747919432103,-232.25599026,0.0001853,2]
[361978776,1747919432114,-187.0,0.0001874,3]
[361978778,1747919432124,-176.24761406,0.000189,2]
[361978780,1747919432134,-202.270087,0.00019178,2]
[361978782,1747919432144,-1345.6558494,0.0001997,2]
[361978784,1747919432155,-685.624294,0.0002016,2]
[361978797,1747919432296,-163.881502,0.00020187,2]
[361978799,1747919432307,-300.0,0.00020245,2]
[361978800,1747919432317,-1200.0,0.00020245,2]
[361978802,1747919432328,-300.0,0.00020246,2]
[361978804,1747919432338,-382.8212775,0.00020247,2]
[361978806,1747919432348,-186.40321118,0.00020339,5]
[361978808,1747919432358,-163.39311348,0.00020339,5]
[361978809,1747919432368,-300.0,0.00020499,2]
[361978811,1747919432377,-300.0,0.00020499,2]
[361978813,1747919432389,-300.0,0.00020499,2]
[361978814,1747919432398,-300.0,0.00020499,2]
[361978816,1747919432408,-1580.97611525,0.000205,3]
[361978818,1747919432417,-1580.97611501,0.000205,3]
[361978820,1747919432429,-1580.97611501,0.000205,3]
[361978821,1747919432439,-1580.97611501,0.000205,3]
[361978823,1747919432448,-1580.97611501,0.000205,3]
[361978825,1747919432458,-1580.97611501,0.000205,3]
[361978827,1747919432467,-1580.97611501,0.000205,3]
[361978829,1747919432477,-1580.97611501,0.000205,3]
[361978830,1747919432486,-1580.97611501,0.00020555,3]
[361978832,1747919432496,-1580.97611501,0.00020762,3]
[361978834,1747919432506,-500.0,0.00020839,2]
[361978836,1747919432516,-500.0,0.00020839,2]
[361978837,1747919432525,-500.0,0.00020839,2]
[361978839,1747919432536,-309.21291739,0.00020839,2]
[361978841,1747919432546,-24900.0,0.0002084,2]
[361978842,1747919432555,-398.25349921,0.00020905,2]
[361978844,1747919432564,-1580.97611501,0.00020969,4]
[361978846,1747919432574,-593.78021639,0.00021113,2]
[361978848,1747919432584,-1580.97611501,0.00021176,4]
[361978849,1747919432594,-1580.97611501,0.00021383,5]
[361978851,1747919432604,-1580.97611501,0.0002159,5]
[361978853,1747919432614,-1580.97611501,0.00021797,6]
[361978855,1747919432624,-232.25599025,0.00021817,2]
[361978857,1747919432634,-1606.54677327,0.00021817,2]
[361978858,1747919432643,-357.62228865,0.000219,3]
[361978860,1747919432653,-500.0,0.00021916,2]
[361978861,1747919432662,-500.0,0.00021916,2]
[361978863,1747919432672,-500.0,0.00021916,2]
[361978865,1747919432683,-500.0,0.00021916,2]
[361978866,1747919432693,-614.45111176,0.00021916,2]
[361978868,1747919432702,-500.0,0.00021916,2]
[361978869,1747919432713,-500.0,0.00021916,2]
[361978871,1747919432722,-500.0,0.00021916,2]
[361978872,1747919432732,-61.81721472,0.00021916,2]
[361978911,1747919437839,-1435.78988996,0.00018162,2]
[361978959,1747919443100,-621.09366767,0.00018162,2]
[361978960,1747919443113,-864.30403454,0.00018162,2]
[361978989,1747919445955,-2078.81240783,0.00018162,2]
[361978990,1747919445965,-300.0,0.00020244,2]
[361978991,1747919445975,-438.18278528,0.00021916,2]
[361978992,1747919445987,-500.0,0.00021916,2]
[361978993,1747919445997,-500.0,0.00021916,2]
[361978994,1747919446007,-161.15391107,0.00021916,2]
[361978995,1747919446017,-430.0,0.00021917,2]
[361978996,1747919446028,-430.0,0.00021917,2]
[361978997,1747919446037,-450.0,0.00021917,2]
[361978998,1747919446047,-430.0,0.00021917,2]
[361978999,1747919446057,-430.0,0.00021917,2]
[361979000,1747919446067,-430.0,0.00021917,2]
[361979001,1747919446077,-430.0,0.00021917,2]
[361979002,1747919446087,-516.17,0.00021917,2]
[361979003,1747919446097,-430.0,0.00021917,2]
[361979004,1747919446108,-430.0,0.00021917,2]
[361979005,1747919446118,-430.0,0.00021917,2]
[361979007,1747919446128,-409.9081922,0.00021917,2]
[361979008,1747919446138,-430.0,0.00021917,2]
[361979010,1747919446150,-430.0,0.00021917,2]
[361979011,1747919446162,-430.0,0.00021917,2]
[361979012,1747919446174,-430.0,0.00021917,2]
[361979013,1747919446184,-430.0,0.00021917,2]
[361979014,1747919446196,-430.0,0.00021917,2]
[361979015,1747919446206,-430.0,0.00021917,2]
[361979016,1747919446216,-430.0,0.00021917,2]
[361979017,1747919446226,-430.0,0.00021917,2]
[361979018,1747919446236,-430.0,0.00021917,2]
[361979019,1747919446246,-581.28,0.00021917,2]
[361979020,1747919446255,-430.0,0.00021917,2]
[361979021,1747919446265,-430.0,0.00021917,2]
[361979022,1747919446276,-450.0,0.00021917,2]
[361979023,1747919446289,-430.0,0.00021917,2]
[361979024,1747919446305,-430.0,0.00021917,2]
[361979025,1747919446316,-430.0,0.00021917,2]
[361979026,1747919446325,-430.0,0.00021917,2]
[361979027,1747919446335,-430.0,0.00021917,2]
[361979028,1747919446345,-430.0,0.00021917,2]
[361979029,1747919446355,-430.0,0.00021917,2]
[361979030,1747919446365,-430.0,0.00021917,2]
[361979031,1747919446375,-430.0,0.00021917,2]
[361979032,1747919446387,-430.0,0.00021917,2]
[361979033,1747919446396,-400.0,0.00021917,2]
[361979034,1747919446406,-430.0,0.00021917,2]
[361979035,1747919446416,-430.0,0.00021917,2]
[361979036,1747919446426,-430.0,0.00021917,2]
[361979037,1747919446435,-430.0,0.00021917,2]
[361979038,1747919446446,-430.0,0.00021917,2]
[361979039,1747919446455,-659.7,0.00021917,2]
[361979040,1747919446465,-34.50482467,0.00021917,2]
[361979041,1747919446479,-395.49517533,0.00021917,2]
[361979042,1747919446489,-432.36761153,0.00021917,2]
[361979043,1747919446498,-430.0,0.00021917,2]
[361979044,1747919446510,-430.0,0.00021917,2]
[361979045,1747919446523,-430.0,0.00021917,2]
[361979046,1747919446540,-430.0,0.00021917,2]
[361979047,1747919446557,-400.0,0.00021917,2]